[Event "Sunway Sitges Chess Festival"]
[Date "2024.12.21"]
[White "Kristoferitsch, Daniel"]
[Black "Makkar, Rajat"]
[WhiteElo "2287"]
[BlackElo "2433"]
[Round "6.17"]
[Result "1-0"]
[TimeControl "40/5400+30:1800+30"]

1. d4 {[%clk 1:30:56]} 1... d5 {[%clk 1:26:07]} 2. c4 {[%clk 1:31:17]} 2... c6
{[%clk 1:26:29]} 3. Nc3 {[%clk 1:31:39]} 3... Nf6 {[%clk 1:26:44]} 4. e3 {[%clk
1:32:02]} 4... a6 {[%clk 1:26:58]} 5. Qc2 {[%clk 1:31:19]} 5... g6 {[%clk
1:26:58]} 6. Bd3 {[%clk 1:31:41]} 6... Bg7 {[%clk 1:27:23]} 7. Nf3 {[%clk
1:32:05]} 7... O-O {[%clk 1:27:47]} 8. O-O {[%clk 1:32:28]} 8... Bg4 {[%clk
1:28:06]} 9. Ne5 {[%clk 1:32:43]} 9... Be6 {[%clk 1:28:30]} 10. c5 {[%clk
1:32:35]} 10... Nbd7 {[%clk 1:28:46]} 11. Nxd7 {[%clk 1:32:06]} 11... Qxd7
{[%clk 1:29:11]} 12. Bd2 {[%clk 1:31:28]} 12... Bf5 {[%clk 1:29:14]} 13. Bxf5
{[%clk 1:31:52]} 13... Qxf5 {[%clk 1:28:47]} 14. Qxf5 {[%clk 1:32:16]} 14...
gxf5 {[%clk 1:29:13]} 15. Ne2 {[%clk 1:32:04]} 15... a5 {[%clk 1:29:42]} 16.
Rfc1 {[%clk 1:22:56]} 16... Nd7 {[%clk 1:27:18]} 17. Rc2 {[%clk 1:18:51]} 17...
a4 {[%clk 1:25:01]} 18. Rb1 {[%clk 0:54:42]} 18... Rfb8 {[%clk 1:20:15]} 19. b4
{[%clk 0:48:52]} 19... b6 {[%clk 1:17:18]} 20. cxb6 {[%clk 0:47:56]} 20... Nxb6
{[%clk 1:17:09]} 21. Rxc6 {[%clk 0:46:50]} 21... Nc4 {[%clk 1:17:09]} 22. Bc1
{[%clk 0:46:46]} 22... e6 {[%clk 1:13:28]} 23. Nc3 {[%clk 0:40:48]} 23... Bf8
{[%clk 1:02:10]} 24. b5 {[%clk 0:39:00]} 24... a3 {[%clk 1:00:16]} 25. Kf1
{[%clk 0:31:04]} 25... Ra5 {[%clk 0:56:13]} 26. Ke1 {[%clk 0:22:18]} 26... Ra7
{[%clk 0:53:41]} 27. Kd1 {[%clk 0:19:19]} 27... Rba8 {[%clk 0:51:33]} 28. b6
{[%clk 0:13:38]} 28... Rb7 {[%clk 0:51:39]} 29. Kc2 {[%clk 0:08:54]} 29... Ra6
{[%clk 0:46:16]} 30. Rb5 {[%clk 0:05:22]} 30... Kg7 {[%clk 0:44:42]} 31. Kd3
{[%clk 0:03:43]} 31... Na5 {[%clk 0:43:44]} 32. Rcc5 {[%clk 0:03:53]} 32... Nc4
{[%clk 0:39:00]} 33. Rc6 {[%clk 0:04:16]} 33... Na5 {[%clk 0:28:03]} 34. Rcc5
{[%clk 0:04:28]} 34... Bxc5 {[%clk 0:22:39]} 35. dxc5 {[%clk 0:04:53]} 35... Nc4
{[%clk 0:23:07]} 36. f3 {[%clk 0:03:56]} 36... Kf6 {[%clk 0:23:11]} 37. e4
{[%clk 0:03:28]} 37... fxe4+ {[%clk 0:23:24]} 38. fxe4 {[%clk 0:03:51]} 38...
Ne5+ {[%clk 0:23:51]} 39. Kc2 {[%clk 0:01:08]} 39... d4 {[%clk 0:17:09]} 40. Nb1
{[%clk 0:30:50]} 40... d3+ {[%clk 0:43:57]} 41. Kb3 {[%clk 0:25:30]} 41... Ke7
{[%clk 0:38:49]} 42. Bxa3 {[%clk 0:15:02]} 42... Kd7 {[%clk 0:37:59]} 43. Bb2
{[%clk 0:14:58]} 43... Kc6 {[%clk 0:30:03]} 44. a4 {[%clk 0:15:06]} 44... Nd7
{[%clk 0:28:49]} 45. Bd4 {[%clk 0:14:40]} 45... Rb8 {[%clk 0:23:46]} 46. Kb4
{[%clk 0:07:10]} 46... Rg8 {[%clk 0:18:59]} 47. g3 {[%clk 0:06:34]} 47... Rd8
{[%clk 0:16:11]} 48. Be3 {[%clk 0:06:10]} 48... Ne5 {[%clk 0:14:39]} 49. Nd2
{[%clk 0:06:04]} 49... Kb7 {[%clk 0:13:44]} 50. a5 {[%clk 0:05:54]} 50... Kc6
{[%clk 0:13:35]} 51. Ka4 {[%clk 0:05:34]} 51... Ng4 {[%clk 0:13:57]} 52. Bg1
{[%clk 0:05:55]} 52... f5 {[%clk 0:14:04]} 53. exf5 {[%clk 0:05:01]} 53... exf5
{[%clk 0:14:32]} 54. Rb2 {[%clk 0:02:11]} 54... Ne5 {[%clk 0:12:10]} 55. Kb4
{[%clk 0:03:08]} 55... Rg8 {[%clk 0:11:57]} 56. Be3 {[%clk 0:02:46]} 56... Nd7
{[%clk 0:11:17]} 57. Nb3 {[%clk 0:02:01]} 57... Re8 {[%clk 0:09:56]} 58. Nd4+
{[%clk 0:02:12]} 58... Kd5 {[%clk 0:10:23]} 59. Nxf5 {[%clk 0:02:23]} 59... Ne5
{[%clk 0:10:19]} 60. Bd2 {[%clk 0:01:45]} 60... Nc4 {[%clk 0:08:56]} 61. Rb3
{[%clk 0:01:16]} 61... Nxd2 {[%clk 0:07:03]} 62. Rxd3+ {[%clk 0:01:42]} 62...
Ke5 {[%clk 0:06:06]} 63. Re3+ {[%clk 0:01:06]} 63... Kd5 {[%clk 0:05:32]} 1-0

[Variant "Standard"]
[Site "Europe Echecs"]

[Event "Sunway Sitges Chess Festival"]
[Date "2024.12.21"]
[White "Travadon, Loic"]
[Black "Liu, Yi"]
[WhiteElo "2428"]
[BlackElo "2261"]
[Round "6.18"]
[Result "0-1"]
[TimeControl "40/5400+30:1800+30"]

1. d4 {[%clk 1:30:57]} 1... d5 {[%clk 1:26:12]} 2. c4 {[%clk 1:31:19]} 2... e6
{[%clk 1:26:39]} 3. Nc3 {[%clk 1:31:42]} 3... Nf6 {[%clk 1:26:42]} 4. Bg5 {[%clk
1:31:06]} 4... Be7 {[%clk 1:26:20]} 5. Nf3 {[%clk 1:30:53]} 5... Nbd7 {[%clk
1:25:56]} 6. e3 {[%clk 1:30:26]} 6... O-O {[%clk 1:26:09]} 7. Rc1 {[%clk
1:29:19]} 7... c5 {[%clk 1:25:29]} 8. cxd5 {[%clk 1:19:20]} 8... Nxd5 {[%clk
1:25:34]} 9. Bxe7 {[%clk 1:15:39]} 9... Nxe7 {[%clk 1:25:42]} 10. Bc4 {[%clk
0:59:33]} 10... b6 {[%clk 1:15:41]} 11. O-O {[%clk 0:42:21]} 11... Bb7 {[%clk
1:14:32]} 12. e4 {[%clk 0:37:02]} 12... cxd4 {[%clk 1:07:43]} 13. Nxd4 {[%clk
0:37:08]} 13... Ne5 {[%clk 1:07:31]} 14. Bb3 {[%clk 0:35:58]} 14... N7c6 {[%clk
0:57:39]} 15. Nxc6 {[%clk 0:25:20]} 15... Nxc6 {[%clk 0:56:53]} 16. Nb5 {[%clk
0:22:10]} 16... Ba6 {[%clk 0:55:35]} 17. a4 {[%clk 0:11:10]} 17... Bxb5 {[%clk
0:54:48]} 18. axb5 {[%clk 0:11:26]} 18... Nd4 {[%clk 0:55:13]} 19. Bc4 {[%clk
0:10:16]} 19... Qf6 {[%clk 0:52:26]} 20. Rc3 {[%clk 0:08:48]} 20... Rac8 {[%clk
0:51:54]} 21. Bd3 {[%clk 0:06:00]} 21... e5 {[%clk 0:49:08]} 22. Bc4 {[%clk
0:05:25]} 22... Rc7 {[%clk 0:43:37]} 23. Qd3 {[%clk 0:05:30]} 23... Rfc8 {[%clk
0:43:25]} 24. Rfc1 {[%clk 0:04:53]} 24... Qe7 {[%clk 0:36:18]} 25. g3 {[%clk
0:04:31]} 25... g6 {[%clk 0:36:28]} 26. Kg2 {[%clk 0:04:42]} 26... Kg7 {[%clk
0:36:40]} 27. Bd5 {[%clk 0:03:31]} 27... Rc5 {[%clk 0:32:08]} 28. Rxc5 {[%clk
0:03:36]} 28... Rxc5 {[%clk 0:32:28]} 29. Rxc5 {[%clk 0:03:51]} 29... Qxc5
{[%clk 0:32:28]} 30. Bc4 {[%clk 0:04:19]} 30... h5 {[%clk 0:27:16]} 31. h4
{[%clk 0:03:44]} 31... Qc8 {[%clk 0:26:41]} 32. b3 {[%clk 0:02:28]} 32... Qc5
{[%clk 0:25:36]} 33. Kf1 {[%clk 0:02:35]} 33... Qb4 {[%clk 0:24:22]} 34. Kg2
{[%clk 0:02:29]} 34... Qe1 {[%clk 0:19:20]} 35. Bd5 {[%clk 0:01:27]} 35... Ne2
{[%clk 0:18:19]} 36. Qf3 {[%clk 0:01:40]} 36... f6 {[%clk 0:17:38]} 37. Bc4
{[%clk 0:01:10]} 37... Qg1+ {[%clk 0:17:23]} 38. Kh3 {[%clk 0:01:39]} 38... Nc3
{[%clk 0:15:10]} 39. Qg2 {[%clk 0:00:45]} 39... Qxg2+ {[%clk 0:13:57]} 40. Kxg2
{[%clk 0:31:13]} 40... Nxe4 {[%clk 0:44:20]} 41. Bd5 {[%clk 0:29:29]} 41... Nd6
{[%clk 0:41:38]} 42. Bc6 {[%clk 0:29:57]} 42... Nf5 {[%clk 0:32:36]} 43. Kf3
{[%clk 0:29:49]} 43... a5 {[%clk 0:28:15]} 44. Ke4 {[%clk 0:27:40]} 44... Nd4
{[%clk 0:16:18]} 45. f4 {[%clk 0:27:55]} 45... Nxb3 {[%clk 0:16:32]} 46. fxe5
{[%clk 0:28:19]} 46... a4 {[%clk 0:14:23]} 47. e6 {[%clk 0:27:29]} 47... Kf8
{[%clk 0:14:28]} 48. Kd5 {[%clk 0:27:39]} 48... Ke7 {[%clk 0:14:33]} 49. Kc4
{[%clk 0:28:07]} 49... Kxe6 {[%clk 0:13:34]} 50. Be8 {[%clk 0:28:29]} 50... Kf5
{[%clk 0:12:27]} 51. Bd7+ {[%clk 0:28:56]} 51... Ke4 {[%clk 0:12:27]} 52. Bc6+
{[%clk 0:29:17]} 52... Ke3 {[%clk 0:12:42]} 53. Be8 {[%clk 0:29:31]} 53... Kf2
{[%clk 0:12:56]} 54. Bxg6 {[%clk 0:29:30]} 54... Kxg3 {[%clk 0:13:22]} 0-1

[Variant "Standard"]
[Site "Europe Echecs"]

[Event "Sunway Sitges Chess Festival"]
[Date "2024.12.21"]
[White "Van Zyl-Rudd, Jack"]
[Black "Arfan, Aditya Bagus"]
[WhiteElo "2268"]
[BlackElo "2416"]
[Round "6.19"]
[Result "1/2-1/2"]
[TimeControl "40/5400+30:1800+30"]

1. e4 {[%clk 1:29:43]} 1... c5 {[%clk 1:27:37]} 2. Nf3 {[%clk 1:29:48]} 2... e6
{[%clk 1:27:46]} 3. d4 {[%clk 1:29:40]} 3... cxd4 {[%clk 1:28:11]} 4. Nxd4
{[%clk 1:30:05]} 4... a6 {[%clk 1:28:31]} 5. Bd3 {[%clk 1:30:04]} 5... Bc5
{[%clk 1:27:15]} 6. Nb3 {[%clk 1:30:21]} 6... Be7 {[%clk 1:27:34]} 7. Qg4 {[%clk
1:30:03]} 7... g6 {[%clk 1:27:56]} 8. Qe2 {[%clk 1:30:18]} 8... d6 {[%clk
1:28:19]} 9. O-O {[%clk 1:26:31]} 9... Qc7 {[%clk 1:27:44]} 10. f4 {[%clk
1:25:20]} 10... Nd7 {[%clk 1:27:47]} 11. f5 {[%clk 1:19:29]} 11... gxf5 {[%clk
1:23:37]} 12. Nc3 {[%clk 1:07:27]} 12... Ngf6 {[%clk 1:22:50]} 13. Bg5 {[%clk
0:45:11]} 13... b5 {[%clk 1:08:24]} 14. exf5 {[%clk 0:34:54]} 14... e5 {[%clk
1:06:37]} 15. Bxf6 {[%clk 0:28:15]} 15... Nxf6 {[%clk 1:04:11]} 16. Be4 {[%clk
0:28:26]} 16... Bb7 {[%clk 1:02:29]} 17. Bxb7 {[%clk 0:24:26]} 17... Qxb7 {[%clk
1:02:57]} 18. Nd2 {[%clk 0:24:54]} 18... b4 {[%clk 0:45:30]} 19. Nce4 {[%clk
0:24:56]} 19... d5 {[%clk 0:40:56]} 20. Nxf6+ {[%clk 0:25:00]} 20... Bxf6 {[%clk
0:41:24]} 21. a3 {[%clk 0:24:33]} 21... Rc8 {[%clk 0:36:06]} 22. Nb3 {[%clk
0:10:45]} 22... a5 {[%clk 0:19:38]} 23. axb4 {[%clk 0:11:01]} 23... axb4 {[%clk
0:19:56]} 24. Ra6 {[%clk 0:07:59]} 24... Rxc2 {[%clk 0:15:01]} 25. Qxc2 {[%clk
0:08:16]} 25... Qxa6 {[%clk 0:15:20]} 26. Qc5 {[%clk 0:08:23]} 26... Qc4 {[%clk
0:06:54]} 27. Qd6 {[%clk 0:08:19]} 27... Qxb3 {[%clk 0:07:19]} 28. Qc6+ {[%clk
0:02:32]} 28... Ke7 {[%clk 0:05:27]} 29. Qc5+ {[%clk 0:02:56]} 29... Kd7 {[%clk
0:04:54]} 30. Qb5+ {[%clk 0:03:21]} 30... Ke7 {[%clk 0:05:11]} 31. Qc5+ {[%clk
0:03:48]} 1/2-1/2

[Variant "Standard"]
[Site "Europe Echecs"]

[Event "Sunway Sitges Chess Festival"]
[Date "2024.12.21"]
[White "Atanasov, Anthony"]
[Black "Chia, Yu Zhe Ashton"]
[WhiteElo "2415"]
[BlackElo "2252"]
[Round "6.20"]
[Result "1-0"]
[TimeControl "40/5400+30:1800+30"]

1. d4 {[%clk 1:30:58]} 1... Nf6 {[%clk 1:22:11]} 2. c4 {[%clk 1:31:11]} 2... e6
{[%clk 1:22:12]} 3. Nf3 {[%clk 1:31:31]} 3... b6 {[%clk 1:22:24]} 4. Bf4 {[%clk
1:31:44]} 4... Bb7 {[%clk 1:21:54]} 5. e3 {[%clk 1:31:55]} 5... Nh5 {[%clk
1:17:13]} 6. Bg5 {[%clk 1:29:53]} 6... Be7 {[%clk 1:17:32]} 7. h4 {[%clk
1:28:56]} 7... h6 {[%clk 1:17:54]} 8. Bxe7 {[%clk 1:29:06]} 8... Qxe7 {[%clk
1:18:17]} 9. Nc3 {[%clk 1:23:28]} 9... d6 {[%clk 1:14:39]} 10. g4 {[%clk
1:22:26]} 10... Nf6 {[%clk 1:13:46]} 11. Rg1 {[%clk 1:17:36]} 11... Ne4 {[%clk
1:06:42]} 12. Nxe4 {[%clk 1:22:50]} 12... Bxe4 {[%clk 0:53:53]} 13. Nd2 {[%clk
1:09:21]} 13... Bb7 {[%clk 1:02:55]} 14. Bg2 {[%clk 0:59:23]} 14... Bxg2 {[%clk
0:54:02]} 15. Rxg2 {[%clk 0:49:49]} 15... d5 {[%clk 0:51:45]} 16. Qf3 {[%clk
1:04:54]} 16... c6 {[%clk 0:45:56]} 17. O-O-O {[%clk 0:58:35]} 17... Nd7 {[%clk
0:31:30]} 18. e4 {[%clk 0:48:32]} 18... O-O-O {[%clk 0:26:22]} 19. cxd5 {[%clk
0:36:09]} 19... exd5 {[%clk 0:25:09]} 20. exd5 {[%clk 0:34:11]} 20... Nf6 {[%clk
0:23:39]} 21. Qf5+ {[%clk 0:29:56]} 21... Kc7 {[%clk 0:23:46]} 22. Nc4 {[%clk
0:17:17]} 22... Rxd5 {[%clk 0:18:16]} 23. Qf4+ {[%clk 0:17:32]} 23... Kb7 {[%clk
0:18:37]} 24. f3 {[%clk 0:14:07]} 24... Qc7 {[%clk 0:15:27]} 25. Qxc7+ {[%clk
0:12:49]} 25... Kxc7 {[%clk 0:15:55]} 26. Rc2 {[%clk 0:12:55]} 26... Kb7 {[%clk
0:11:23]} 27. Ne5 {[%clk 0:08:57]} 27... c5 {[%clk 0:11:45]} 28. Nxf7 {[%clk
0:07:18]} 28... Rf8 {[%clk 0:12:09]} 29. Ne5 {[%clk 0:07:46]} 29... cxd4 {[%clk
0:12:16]} 30. Ng6 {[%clk 0:07:28]} 30... Re8 {[%clk 0:12:15]} 31. Nf4 {[%clk
0:07:19]} 31... Rdd8 {[%clk 0:11:50]} 32. Re2 {[%clk 0:05:54]} 32... Rxe2 {[%clk
0:02:59]} 33. Nxe2 {[%clk 0:06:23]} 33... d3 {[%clk 0:00:39]} 34. Nf4 {[%clk
0:04:36]} 34... h5 {[%clk 0:01:20]} 35. g5 {[%clk 0:03:29]} 35... Nd5 {[%clk
0:01:48]} 36. Nxd3 {[%clk 0:03:30]} 36... Rc8+ {[%clk 0:01:29]} 37. Kb1 {[%clk
0:01:30]} 37... Ne3 {[%clk 0:01:06]} 38. Re1 {[%clk 0:01:33]} 38... Nf5 {[%clk
0:01:33]} 39. Re4 {[%clk 0:01:22]} 39... Rd8 {[%clk 0:02:00]} 40. Kc2 {[%clk
0:30:42]} 40... Nd4+ {[%clk 0:30:53]} 41. Kc3 {[%clk 0:28:06]} 41... Nxf3 {[%clk
0:27:58]} 42. Re7+ {[%clk 0:20:43]} 42... Kc6 {[%clk 0:26:04]} 43. Rxg7 {[%clk
0:18:41]} 43... Nxh4 {[%clk 0:23:44]} 44. Rh7 {[%clk 0:10:53]} 44... Rg8 {[%clk
0:22:46]} 45. Rxh5 {[%clk 0:10:55]} 45... Nf3 {[%clk 0:22:13]} 46. Rh6+ {[%clk
0:09:36]} 46... Kb5 {[%clk 0:22:25]} 47. b3 {[%clk 0:07:00]} 47... Nxg5 {[%clk
0:22:13]} 48. a4+ {[%clk 0:07:13]} 48... Ka5 {[%clk 0:22:30]} 49. Kb2 {[%clk
0:02:55]} 49... Ka6 {[%clk 0:22:41]} 50. Nc5+ {[%clk 0:03:00]} 50... Ka5 {[%clk
0:23:10]} 51. Nb7+ {[%clk 0:03:24]} 51... Ka6 {[%clk 0:23:26]} 52. Nc5+ {[%clk
0:03:49]} 52... Ka5 {[%clk 0:23:53]} 53. Nb7+ {[%clk 0:04:02]} 53... Ka6 {[%clk
0:24:20]} 54. Nd6 {[%clk 0:04:30]} 54... Rg7 {[%clk 0:21:53]} 55. Rf6 {[%clk
0:04:04]} 55... Nh7 {[%clk 0:22:18]} 56. Rf4 {[%clk 0:03:20]} 56... Ng5 {[%clk
0:11:57]} 57. b4 {[%clk 0:03:29]} 57... Ne6 {[%clk 0:11:15]} 58. Re4 {[%clk
0:03:54]} 58... Ng5 {[%clk 0:11:38]} 59. b5+ {[%clk 0:03:51]} 59... Ka5 {[%clk
0:12:03]} 60. Kb3 {[%clk 0:03:20]} 60... Rc7 {[%clk 0:12:10]} 61. Re7 {[%clk
0:04:23]} 1-0

[Variant "Standard"]
[Site "Europe Echecs"]

[Event "Sunway Sitges Chess Festival"]
[Date "2024.12.21"]
[White "Dudognon, Thibault"]
[Black "Zheng, Harry Z"]
[WhiteElo "2411"]
[BlackElo "2248"]
[Round "6.21"]
[Result "1/2-1/2"]
[TimeControl "40/5400+30:1800+30"]

1. e4 {[%clk 1:29:29]} 1... e5 {[%clk 1:30:46]} 2. Nf3 {[%clk 1:29:49]} 2... Nc6
{[%clk 1:30:59]} 3. Bb5 {[%clk 1:30:12]} 3... a6 {[%clk 1:31:03]} 4. Bxc6 {[%clk
1:30:35]} 4... dxc6 {[%clk 1:31:22]} 5. Nc3 {[%clk 1:30:59]} 5... Bd6 {[%clk
1:29:19]} 6. d4 {[%clk 1:30:47]} 6... Bg4 {[%clk 1:23:45]} 7. dxe5 {[%clk
1:29:54]} 7... Bxf3 {[%clk 1:23:08]} 8. Qxf3 {[%clk 1:30:20]} 8... Bxe5 {[%clk
1:23:26]} 9. Bf4 {[%clk 1:26:42]} 9... Bxf4 {[%clk 1:20:09]} 10. Qxf4 {[%clk
1:24:22]} 10... Nf6 {[%clk 1:15:30]} 11. Qe5+ {[%clk 1:22:57]} 11... Qe7 {[%clk
1:14:37]} 12. Qxe7+ {[%clk 1:23:23]} 12... Kxe7 {[%clk 1:14:12]} 13. Ke2 {[%clk
1:17:59]} 13... Rhe8 {[%clk 1:11:29]} 14. f3 {[%clk 1:18:59]} 14... h5 {[%clk
1:09:26]} 15. Rad1 {[%clk 1:15:22]} 15... Rad8 {[%clk 1:04:52]} 16. g3 {[%clk
0:58:39]} 16... Nd7 {[%clk 1:02:12]} 17. b3 {[%clk 0:54:35]} 17... Nc5 {[%clk
0:50:15]} 18. Ke3 {[%clk 1:05:34]} 18... Rd6 {[%clk 0:45:02]} 19. b4 {[%clk
0:56:47]} 19... Nd7 {[%clk 0:42:35]} 20. f4 {[%clk 0:52:49]} 20... Nb6 {[%clk
0:39:55]} 21. e5 {[%clk 0:44:57]} 21... Rdd8 {[%clk 0:35:00]} 22. Ke4 {[%clk
0:36:39]} 22... f6 {[%clk 0:30:55]} 23. Rxd8 {[%clk 0:46:31]} 23... Rxd8 {[%clk
0:28:20]} 24. Rd1 {[%clk 0:37:51]} 24... Nd7 {[%clk 0:19:39]} 25. exf6+ {[%clk
0:38:37]} 25... Nxf6+ {[%clk 0:18:10]} 26. Kf5 {[%clk 0:38:36]} 26... Rxd1
{[%clk 0:17:46]} 27. Nxd1 {[%clk 0:39:05]} 27... Kf7 {[%clk 0:16:54]} 28. Ne3
{[%clk 0:37:46]} 28... g6+ {[%clk 0:14:10]} 29. Ke5 {[%clk 0:38:10]} 29... Nd7+
{[%clk 0:14:33]} 30. Kd4 {[%clk 0:36:38]} 30... Ke6 {[%clk 0:11:02]} 31. Nc4
{[%clk 0:28:49]} 31... Nf6 {[%clk 0:08:59]} 32. Ne3 {[%clk 0:26:58]} 32... Ne8
{[%clk 0:04:44]} 33. h3 {[%clk 0:25:50]} 33... b6 {[%clk 0:03:27]} 34. g4 {[%clk
0:25:37]} 34... hxg4 {[%clk 0:03:44]} 35. hxg4 {[%clk 0:26:03]} 35... Nf6 {[%clk
0:04:04]} 36. c4 {[%clk 0:20:45]} 36... Nd7 {[%clk 0:03:40]} 37. c5 {[%clk
0:21:08]} 37... a5 {[%clk 0:03:28]} 38. bxa5 {[%clk 0:17:45]} 38... bxc5+ {[%clk
0:00:50]} 39. Kc4 {[%clk 0:17:54]} 39... Kd6 {[%clk 0:01:10]} 40. a6 {[%clk
0:46:08]} 40... Nb6+ {[%clk 0:31:22]} 41. Kd3 {[%clk 0:46:29]} 41... Nc8 {[%clk
0:25:42]} 42. Nc4+ {[%clk 0:42:48]} 42... Kd5 {[%clk 0:24:06]} 43. a4 {[%clk
0:42:58]} 43... Na7 {[%clk 0:22:21]} 44. Ne3+ {[%clk 0:43:13]} 44... Kd6 {[%clk
0:21:59]} 45. Kc4 {[%clk 0:42:19]} 45... Nc8 {[%clk 0:21:46]} 46. a5 {[%clk
0:42:33]} 46... Na7 {[%clk 0:21:53]} 47. Nd1 {[%clk 0:42:36]} 47... Nb5 {[%clk
0:17:43]} 48. Nc3 {[%clk 0:42:47]} 48... Na7 {[%clk 0:18:02]} 49. Ne4+ {[%clk
0:43:02]} 49... Kd7 {[%clk 0:17:08]} 50. Kxc5 {[%clk 0:43:12]} 50... Nb5 {[%clk
0:17:19]} 51. Nd2 {[%clk 0:42:31]} 51... Kc8 {[%clk 0:15:08]} 52. Kxc6 {[%clk
0:41:27]} 52... Nd4+ {[%clk 0:15:32]} 53. Kd5 {[%clk 0:41:34]} 53... Ne2 {[%clk
0:15:46]} 54. f5 {[%clk 0:41:23]} 54... gxf5 {[%clk 0:16:00]} 55. gxf5 {[%clk
0:41:49]} 55... Nf4+ {[%clk 0:16:23]} 56. Kc6 {[%clk 0:41:20]} 56... Kb8 {[%clk
0:16:37]} 57. Nb3 {[%clk 0:40:06]} 57... Nh5 {[%clk 0:16:42]} 58. a7+ {[%clk
0:40:08]} 58... Kxa7 {[%clk 0:17:06]} 59. Kxc7 {[%clk 0:40:34]} 59... Ng7 {[%clk
0:17:22]} 60. f6 {[%clk 0:34:05]} 60... Ne8+ {[%clk 0:17:46]} 61. Kc6 {[%clk
0:34:22]} 61... Nxf6 {[%clk 0:18:09]} 62. Kb5 {[%clk 0:34:41]} 62... Ne4 {[%clk
0:16:28]} 63. Ka4 {[%clk 0:31:23]} 63... Nd6 {[%clk 0:16:09]} 64. Nd4 {[%clk
0:31:41]} 64... Nc4 {[%clk 0:16:13]} 65. Nc6+ {[%clk 0:31:59]} 65... Kb7 {[%clk
0:16:17]} 66. Nb4 {[%clk 0:32:16]} 66... Nxa5 {[%clk 0:16:40]} 67. Kxa5 {[%clk
0:32:12]} 1/2-1/2

[Variant "Standard"]
[Site "Europe Echecs"]

[Event "Sunway Sitges Chess Festival"]
[Date "2024.12.21"]
[White "Shukhman, Anna"]
[Black "Dhruva Thota"]
[WhiteElo "2245"]
[BlackElo "2351"]
[Round "6.22"]
[Result "1-0"]
[TimeControl "40/5400+30:1800+30"]

1. e4 {[%clk 1:30:58]} 1... c5 {[%clk 1:30:19]} 2. Nf3 {[%clk 1:31:26]} 2... d6
{[%clk 1:30:28]} 3. d4 {[%clk 1:31:54]} 3... cxd4 {[%clk 1:30:26]} 4. Nxd4
{[%clk 1:32:23]} 4... Nf6 {[%clk 1:30:42]} 5. Nc3 {[%clk 1:32:50]} 5... a6
{[%clk 1:30:51]} 6. h3 {[%clk 1:33:17]} 6... e5 {[%clk 1:28:36]} 7. Nb3 {[%clk
1:33:43]} 7... Be7 {[%clk 1:26:46]} 8. g4 {[%clk 1:34:05]} 8... h6 {[%clk
1:24:09]} 9. Be3 {[%clk 1:34:32]} 9... Be6 {[%clk 1:22:20]} 10. Qf3 {[%clk
1:34:25]} 10... Nbd7 {[%clk 1:19:43]} 11. O-O-O {[%clk 1:34:49]} 11... Rc8
{[%clk 1:16:58]} 12. Nd5 {[%clk 1:14:10]} 12... Bxd5 {[%clk 1:04:44]} 13. exd5
{[%clk 1:14:35]} 13... Nh7 {[%clk 1:03:46]} 14. Bd3 {[%clk 1:08:05]} 14... Bg5
{[%clk 0:59:54]} 15. Bxh7 {[%clk 0:55:13]} 15... Rxh7 {[%clk 0:58:42]} 16. h4
{[%clk 0:55:21]} 16... Qf6 {[%clk 0:40:47]} 17. Qe2 {[%clk 0:43:31]} 17... Bxe3+
{[%clk 0:35:18]} 18. Qxe3 {[%clk 0:37:07]} 18... Qg6 {[%clk 0:29:28]} 19. Qe2
{[%clk 0:36:18]} 19... h5 {[%clk 0:22:32]} 20. g5 {[%clk 0:29:15]} 20... Qf5
{[%clk 0:21:24]} 21. Kb1 {[%clk 0:24:32]} 21... Nf8 {[%clk 0:17:26]} 22. Nd4
{[%clk 0:18:26]} 22... Qf4 {[%clk 0:14:25]} 23. Rh3 {[%clk 0:18:42]} 23... Qg4
{[%clk 0:07:29]} 24. Rf3 {[%clk 0:18:35]} 24... Qd7 {[%clk 0:06:48]} 25. Qe4
{[%clk 0:16:26]} 25... Qg4 {[%clk 0:04:47]} 26. Nf5 {[%clk 0:10:37]} 26... Kd7
{[%clk 0:04:26]} 27. Qe3 {[%clk 0:09:17]} 27... Qc4 {[%clk 0:03:24]} 28. Qb3
{[%clk 0:07:03]} 28... Rc7 {[%clk 0:01:42]} 29. Rc3 {[%clk 0:04:19]} 29... Qxb3
{[%clk 0:01:31]} 30. Rxb3 {[%clk 0:04:31]} 30... b5 {[%clk 0:01:22]} 31. a4
{[%clk 0:04:19]} 31... g6 {[%clk 0:00:55]} 32. Ne3 {[%clk 0:03:13]} 32... bxa4
{[%clk 0:00:53]} 33. Ra3 {[%clk 0:02:32]} 33... f6 {[%clk 0:00:52]} 34. gxf6
{[%clk 0:01:42]} 34... Rf7 {[%clk 0:01:05]} 35. Rxa4 {[%clk 0:01:51]} 35... Ra7
{[%clk 0:00:51]} 36. f4 {[%clk 0:01:45]} 36... e4 {[%clk 0:00:35]} 37. Rxe4
{[%clk 0:01:32]} 37... Rxf6 {[%clk 0:01:03]} 38. Nc4 {[%clk 0:01:36]} 38... Rf7
{[%clk 0:00:39]} 39. Rde1 {[%clk 0:01:45]} 39... a5 {[%clk 0:00:38]} 40. Re6
{[%clk 0:31:26]} 40... Kc7 {[%clk 0:30:38]} 41. Rxd6 {[%clk 0:31:10]} 41... Ra8
{[%clk 0:26:13]} 42. Rc6+ {[%clk 0:27:46]} 42... Kd8 {[%clk 0:26:31]} 43. Nd6
{[%clk 0:27:52]} 43... Re7 {[%clk 0:26:34]} 44. Rxe7 {[%clk 0:28:05]} 44... Kxe7
{[%clk 0:27:02]} 45. Ne4 {[%clk 0:28:13]} 45... Rd8 {[%clk 0:26:38]} 46. c4
{[%clk 0:28:32]} 1-0

[Variant "Standard"]
[Site "Europe Echecs"]

[Event "Sunway Sitges Chess Festival"]
[Date "2024.12.21"]
[White "Alexiadis, Hristos"]
[Black "Allahverdiyeva, Ayan"]
[WhiteElo "2341"]
[BlackElo "2194"]
[Round "6.23"]
[Result "1-0"]
[TimeControl "40/5400+30:1800+30"]

1. e4 {[%clk 1:21:01]} 1... c5 {[%clk 1:30:58]} 2. Nf3 {[%clk 1:21:25]} 2... d6
{[%clk 1:31:25]} 3. d4 {[%clk 1:21:44]} 3... cxd4 {[%clk 1:31:51]} 4. Nxd4
{[%clk 1:22:09]} 4... Nf6 {[%clk 1:32:19]} 5. f3 {[%clk 1:22:32]} 5... e5 {[%clk
1:31:01]} 6. Nb3 {[%clk 1:22:55]} 6... d5 {[%clk 1:31:30]} 7. Bg5 {[%clk
1:23:12]} 7... d4 {[%clk 1:31:53]} 8. c3 {[%clk 1:23:14]} 8... Nc6 {[%clk
1:31:44]} 9. cxd4 {[%clk 1:22:28]} 9... Bb4+ {[%clk 1:32:11]} 10. Bd2 {[%clk
1:22:32]} 10... Nxe4 {[%clk 1:20:43]} 11. Bxb4 {[%clk 1:22:51]} 11... Nxb4
{[%clk 1:21:07]} 12. Bb5+ {[%clk 1:10:29]} 12... Kf8 {[%clk 1:19:47]} 13. fxe4
{[%clk 0:53:53]} 13... Qh4+ {[%clk 1:20:13]} 14. Kf1 {[%clk 0:53:53]} 14... Qf4+
{[%clk 1:12:26]} 15. Qf3 {[%clk 0:52:59]} 15... Qxf3+ {[%clk 1:09:47]} 16. gxf3
{[%clk 0:53:23]} 16... Nc2 {[%clk 1:10:16]} 17. dxe5 {[%clk 0:48:40]} 17... Be6
{[%clk 1:10:44]} 18. Nc3 {[%clk 0:48:30]} 18... Bxb3 {[%clk 1:10:38]} 19. Rc1
{[%clk 0:47:30]} 19... Bc4+ {[%clk 1:10:54]} 20. Kf2 {[%clk 0:33:32]} 20... Bxb5
{[%clk 1:11:20]} 21. Nxb5 {[%clk 0:33:27]} 21... Nb4 {[%clk 1:11:47]} 22. Rhd1
{[%clk 0:33:21]} 22... g5 {[%clk 1:10:02]} 23. Rc7 {[%clk 0:20:56]} 23... Nc6
{[%clk 1:10:00]} 24. Rdd7 {[%clk 0:18:26]} 24... Nxe5 {[%clk 1:10:26]} 25. Re7
{[%clk 0:18:49]} 25... f6 {[%clk 1:09:35]} 26. Nd4 {[%clk 0:18:54]} 26... Nd3+
{[%clk 1:09:24]} 27. Ke3 {[%clk 0:17:49]} 27... Nf4 {[%clk 1:07:30]} 28. Rf7+
{[%clk 0:18:13]} 1-0

[Variant "Standard"]
[Site "Europe Echecs"]